fUSD/lending_fUSD_20240726
["ID","MTS","AMOUNT","RATE_DAILY","PERIOD"]
[333236928,1721963434425,-500.0,0.00010958,2]
[333236929,1721963434434,-500.0,0.00010958,2]
[333236930,1721963434444,-500.0,0.00010958,2]
[333236931,1721963434454,-500.0,0.00010958,2]
[333236932,1721963434469,-500.0,0.00010958,2]
[333236933,1721963434479,-500.0,0.00010958,2]
[333236934,1721963434489,-500.0,0.00010958,2]
[333236935,1721963434499,-500.0,0.00010958,2]
[333236936,1721963434509,-500.0,0.00010958,2]
[333236937,1721963434518,-500.0,0.00010958,2]
[333236938,1721963434527,-500.0,0.00010958,2]
[333236939,1721963434537,-500.0,0.00010958,2]
[333236940,1721963434547,-500.0,0.00010958,2]
[333236941,1721963434557,-500.0,0.00010958,2]
[333236942,1721963434566,-500.0,0.00010958,2]
[333236944,1721963434576,-500.0,0.00010958,2]
[333236945,1721963434586,-500.0,0.00010958,2]
[333236947,1721963434596,-500.0,0.00010958,2]
[333236949,1721963434605,-500.0,0.00010958,2]
[333236950,1721963434615,-500.0,0.00010958,2]
[333236951,1721963434625,-500.0,0.00010958,2]
[333236952,1721963434636,-500.0,0.00010958,2]
[333236953,1721963434646,-500.0,0.00010958,2]
[333236954,1721963434656,-639.6796348,0.00010958,2]
[333236955,1721963434667,-500.0,0.00010958,2]
[333236956,1721963434677,-500.0,0.00010958,2]
[333236957,1721963434687,-500.0,0.00010958,2]
[333236958,1721963434698,-500.0,0.00010958,2]
[333236959,1721963434707,-500.0,0.00010958,2]
[333236960,1721963434718,-500.0,0.00010958,2]
[333236961,1721963434727,-500.0,0.00010958,2]
[333236962,1721963434736,-500.0,0.00010958,2]
[333236963,1721963434746,-500.0,0.00010958,2]
[333236964,1721963434755,-500.0,0.00010958,2]
[333236965,1721963434765,-500.0,0.00010958,2]
[333236966,1721963434776,-500.0,0.00010958,2]
[333236967,1721963434785,-500.0,0.00010958,2]
[333236968,1721963434795,-500.0,0.00010958,2]
[333236969,1721963434804,-500.0,0.00010958,2]
[333236970,1721963434814,-500.0,0.00010958,2]
[333236971,1721963434823,-500.0,0.00010958,2]
[333236972,1721963434832,-500.0,0.00010958,2]
[333236973,1721963434842,-500.0,0.00010958,2]
[333236974,1721963434852,-500.0,0.00010958,2]
[333236975,1721963434864,-500.0,0.00010958,2]
[333236976,1721963434874,-527.96321983,0.00010958,2]
[333236977,1721963434887,-500.0,0.00010958,2]
[333236978,1721963434897,-500.0,0.00010958,2]
[333236979,1721963434909,-500.0,0.00010958,2]
[333236980,1721963434919,-500.0,0.00010958,2]
[333236981,1721963434929,-305.8713622,0.00010958,2]
[333236982,1721963434938,-500.0,0.00010958,2]
[333236983,1721963434947,-500.0,0.00010958,2]
[333236984,1721963434957,-500.0,0.00010958,2]
[333236985,1721963434967,-500.0,0.00010958,2]
[333236986,1721963434978,-500.0,0.00010958,2]
[333236987,1721963434988,-500.0,0.00010958,2]
[333236988,1721963434998,-500.0,0.00010958,2]
[333236989,1721963435007,-505.39295198,0.00010958,2]
[333236990,1721963435017,-500.0,0.00010958,2]
[333236991,1721963435026,-500.0,0.00010958,2]
[333236992,1721963435036,-508.02125977,0.00010958,2]
[333236993,1721963435046,-500.0,0.00010958,2]
[333236994,1721963435056,-576.00459646,0.00010958,2]
[333236995,1721963435066,-500.0,0.00010958,2]
[333236996,1721963435076,-500.0,0.00010958,2]
[333236997,1721963435086,-500.0,0.00010958,2]
[333236998,1721963435096,-500.0,0.00010958,2]
[333236999,1721963435105,-500.0,0.00010958,2]
[333237000,1721963435115,-500.0,0.00010958,2]
[333237001,1721963435125,-507.22799963,0.00010958,2]
[333237002,1721963435135,-508.81233447,0.00010958,2]
[333237003,1721963435145,-500.0,0.00010958,2]
[333237004,1721963435155,-500.0,0.00010958,2]
[333237005,1721963435164,-500.0,0.00010958,2]
[333237006,1721963435174,-500.0061173,0.00010958,2]
[333237007,1721963435183,-500.0,0.00010958,2]
[333237008,1721963435193,-500.0,0.00010958,2]
[333237009,1721963435203,-506.62487412,0.00010958,2]
[333237010,1721963435212,-500.0,0.00010958,2]
[333237011,1721963435221,-500.0,0.00010958,2]
[333237012,1721963435231,-500.0,0.00010958,2]
[333237013,1721963435240,-500.0,0.00010958,2]
[333237014,1721963435249,-500.0,0.00010958,2]
[333237015,1721963435258,-500.0,0.00010958,2]
[333237016,1721963435268,-508.85518237,0.00010958,2]
[333237017,1721963435277,-500.0,0.00010958,2]
[333237018,1721963435287,-500.0,0.00010958,2]
[333237019,1721963435297,-500.0,0.00010958,2]
[333237020,1721963435307,-509.65976095,0.00010958,2]
[333237021,1721963435317,-617.07,0.00010958,2]
[333237022,1721963435327,-511.61008781,0.00010958,2]
[333237023,1721963435336,-500.0,0.00010958,2]
[333237024,1721963435346,-500.0,0.00010958,2]
[333237025,1721963435356,-500.0,0.00010958,2]
[333237026,1721963435366,-500.0,0.00010958,2]
[333237027,1721963435375,-500.0,0.00010958,2]
[333237028,1721963435385,-500.0,0.00010958,2]
[333237029,1721963435395,-500.0,0.00010958,2]
[333237030,1721963435404,-500.0,0.00010958,2]
[333237031,1721963435413,-525.57362434,0.00010958,2]
[333237032,1721963435423,-500.0,0.00010958,2]
[333237033,1721963435432,-500.0,0.00010958,2]
[333237034,1721963435442,-500.0,0.00010958,2]
[333237035,1721963435451,-500.0,0.00010958,2]
[333237036,1721963435461,-500.0,0.00010958,2]
[333237037,1721963435470,-500.0,0.00010958,2]
[333237038,1721963435480,-500.0,0.00010958,2]
[333237039,1721963435489,-500.0,0.00010958,2]
[333237040,1721963435499,-500.0,0.00010958,2]
[333237041,1721963435508,-505.82302892,0.00010958,2]
[333237042,1721963435517,-647.98,0.00010958,2]
[333237043,1721963435526,-500.0,0.00010958,2]
[333237044,1721963435536,-500.0,0.00010958,2]
[333237045,1721963435546,-540.23,0.00010958,2]
[333237046,1721963435555,-878.63,0.00010958,2]
[333237047,1721963435564,-500.0,0.00010958,2]
[333237048,1721963435573,-500.0,0.00010958,2]
[333237049,1721963435582,-500.0,0.00010958,2]
[333237050,1721963435592,-500.0,0.00010958,2]
[333237051,1721963435601,-561.29,0.00010958,2]
[333237052,1721963435611,-500.0,0.00010958,2]
[333237053,1721963435620,-500.0,0.00010958,2]
[333237054,1721963435630,-500.0,0.00010958,2]
[333237055,1721963435639,-500.0,0.00010958,2]
[333237056,1721963435649,-500.0,0.00010958,2]
[333237057,1721963435658,-500.0,0.00010958,2]
[333237058,1721963435668,-500.0,0.00010958,2]
[333237059,1721963435677,-500.0,0.00010958,2]
[333237060,1721963435686,-500.0,0.00010958,2]
[333237061,1721963435695,-500.0,0.00010958,2]
[333237062,1721963435704,-500.0,0.00010958,2]
[333237063,1721963435714,-500.0,0.00010958,2]
[333237064,1721963435723,-500.0,0.00010958,2]
[333237065,1721963435732,-752.02,0.00010958,2]
[333237066,1721963435742,-500.0,0.00010958,2]
[333237067,1721963435751,-500.0,0.00010958,2]
[333237068,1721963435761,-500.0,0.00010958,2]
[333237069,1721963435770,-500.0,0.00010958,2]
[333237070,1721963435779,-500.0,0.00010958,2]
[333237071,1721963435789,-500.0,0.00010958,2]
[333237072,1721963435798,-500.0,0.00010958,2]
[333237073,1721963435807,-514.80522849,0.00010958,2]
[333237074,1721963435817,-500.0,0.00010958,2]
[333237075,1721963435827,-500.0,0.00010958,2]
[333237076,1721963435836,-500.0,0.00010958,2]
[333237077,1721963435846,-500.0,0.00010958,2]
[333237078,1721963435856,-500.0,0.00010958,2]
[333237079,1721963435866,-500.0,0.00010958,2]
[333237080,1721963435876,-511.35834381,0.00010958,2]
[333237081,1721963435885,-500.0,0.00010958,2]
[333237082,1721963435895,-509.34580219,0.00010958,2]
[333237083,1721963435905,-507.03940919,0.00010958,2]
[333237084,1721963435915,-500.0,0.00010958,2]
[333237085,1721963435925,-500.0,0.00010958,2]
[333237086,1721963435934,-500.0,0.00010958,2]
[333237087,1721963435944,-514.46279148,0.00010958,2]
[333237088,1721963435953,-500.0,0.00010958,2]
[333237089,1721963435963,-500.0,0.00010958,2]
[333237090,1721963435976,-500.0,0.00010958,2]
[333237091,1721963435985,-500.0,0.00010958,2]
[333237092,1721963435994,-618.59,0.00010958,2]
[333237093,1721963436004,-500.0,0.00010958,2]
[333237094,1721963436014,-500.0,0.00010958,2]
[333237095,1721963436023,-500.0,0.00010958,2]
[333237096,1721963436033,-500.0,0.00010958,2]
[333237097,1721963436044,-504.05986469,0.00010958,2]
[333237098,1721963436053,-500.0,0.00010958,2]
[333237099,1721963436062,-517.97154703,0.00010958,2]
[333237100,1721963436072,-500.0,0.00010958,2]
[333237101,1721963436081,-500.0,0.00010958,2]
[333237102,1721963436091,-500.0,0.00010958,2]
[333237103,1721963436100,-500.0,0.00010958,2]
[333237104,1721963436109,-500.0,0.00010958,2]
[333237105,1721963436118,-500.0,0.00010958,2]
[333237106,1721963436128,-500.0,0.00010958,2]
[333237107,1721963436137,-500.0,0.00010958,2]
[333237108,1721963436146,-500.0,0.00010958,2]
[333237109,1721963436155,-500.0,0.00010958,2]
[333237110,1721963436165,-522.84,0.00010958,2]
[333237111,1721963436174,-500.0,0.00010958,2]
[333237112,1721963436183,-500.0,0.00010958,2]
[333237113,1721963436192,-600.19087928,0.00010958,2]
[333237114,1721963436201,-500.0,0.00010958,2]
[333237115,1721963436211,-500.0,0.00010958,2]
[333237116,1721963436219,-500.0,0.00010958,2]
[333237117,1721963436229,-4805.61,0.00010958,2]
[333237118,1721963436238,-500.0,0.00010958,2]
[333237119,1721963436247,-531.97021992,0.00010958,2]
[333237120,1721963436256,-500.0,0.00010958,2]
[333237121,1721963436266,-500.0,0.00010958,2]
[333237122,1721963436275,-500.0,0.00010958,2]
[333237123,1721963436285,-488.02410161,0.00010958,2]
[333237124,1721963436294,-500.0,0.00010958,2]
[333237125,1721963436303,-570.99760361,0.00010958,2]
[333237126,1721963436312,-500.0,0.00010958,2]
[333237127,1721963436323,-500.0,0.00010958,2]
[333237128,1721963436333,-500.0,0.00010958,2]
[333237129,1721963436342,-500.0,0.00010958,2]
[333237130,1721963436351,-500.0,0.00010958,2]
[333237131,1721963436360,-500.0,0.00010958,2]
[333237132,1721963436369,-500.0,0.00010958,2]
[333237133,1721963436378,-500.0,0.00010958,2]
[333237134,1721963436387,-500.0,0.00010958,2]
[333237135,1721963436396,-500.0,0.00010958,2]
[333237136,1721963436405,-500.0,0.00010958,2]
[333237137,1721963436414,-500.0,0.00010958,2]
[333237138,1721963436423,-6203.59,0.00010958,2]
[333237139,1721963436433,-500.0,0.00010958,2]
[333237140,1721963436444,-500.0,0.00010958,2]
[333237141,1721963436454,-500.0,0.00010958,2]
[333237142,1721963436463,-500.0,0.00010958,2]
[333237143,1721963436472,-500.0,0.00010958,2]
[333237144,1721963436482,-2614.18,0.00010958,2]
[333237145,1721963436491,-1293.49,0.00010958,2]
[333237146,1721963436500,-500.0,0.00010958,2]
[333237147,1721963436510,-500.0,0.00010958,2]
[333237148,1721963436519,-500.0,0.00010958,2]
[333237149,1721963436528,-590.9364083,0.00010958,2]
[333237150,1721963436537,-1105.27,0.00010958,2]
[333237151,1721963436546,-500.0,0.00010958,2]
[333237152,1721963436556,-618.9541524,0.00010958,2]
[333237153,1721963436565,-500.0,0.00010958,2]
[333237154,1721963436575,-500.0,0.00010958,2]
[333237155,1721963436585,-500.0,0.00010958,2]
[333237156,1721963436595,-500.0,0.00010958,2]
[333237157,1721963436606,-500.0,0.00010958,2]
[333237158,1721963436616,-500.0,0.00010958,2]
[333237159,1721963436625,-500.0,0.00010958,2]
[333237160,1721963436638,-687.04,0.00010958,2]
[333237161,1721963436647,-500.0,0.00010958,2]
[333237162,1721963436656,-500.0,0.00010958,2]
[333237163,1721963436666,-529.51,0.00010958,2]
[333237164,1721963436675,-500.0,0.00010958,2]
[333237165,1721963436685,-500.0,0.00010958,2]
[333237166,1721963436909,-500.0,0.00010958,2]
[333237167,1721963436918,-500.0,0.00010958,2]
[333237168,1721963436928,-500.0,0.00010958,2]
[333237169,1721963436937,-500.0,0.00010958,2]
[333237170,1721963436947,-168.29508742,0.00010958,2]
[333237171,1721963436956,-500.0,0.00010958,2]
[333237172,1721963436966,-500.0,0.00010958,2]
[333237173,1721963436977,-500.0,0.00010958,2]
[333237174,1721963436987,-578.71468844,0.00010958,2]
[333237175,1721963436996,-200.0,0.00010959,2]
[333237176,1721963437005,-200.0,0.00010959,2]
[333237177,1721963437015,-200.0,0.00010959,2]
[333237178,1721963437025,-200.0,0.00010959,2]
[333237179,1721963437035,-709.87,0.00010959,2]
[333237180,1721963437044,-258383.18885422,0.00010986,2]
[333237182,1721963437833,-43490.81114578,0.00010986,2]
[333237183,1721963437843,-562.91086048,0.00010998,2]
[333237184,1721963437852,-337.93351108,0.00010998,2]
[333237185,1721963437861,-500.0,0.00010998,2]
[333237186,1721963437871,-560.12,0.00010998,2]
[333237187,1721963437880,-500.0,0.00010998,2]
[333237188,1721963437889,-500.0,0.00010998,2]
[333237189,1721963437899,-198.0941384,0.00010998,2]
[333237190,1721963437909,-525.20272386,0.00010998,2]
[333237192,1721963437918,-500.0,0.00010998,2]
[333237193,1721963437927,-500.0,0.00010998,2]
[333237194,1721963437936,-500.0,0.00010998,2]
[333237195,1721963437945,-500.0,0.00010998,2]
[333237197,1721963437955,-500.0,0.00010998,2]
[333237199,1721963437965,-500.0,0.00010998,2]
[333237201,1721963437977,-500.0,0.00010998,2]
[333237202,1721963437986,-500.0,0.00010998,2]
[333237203,1721963437996,-607.38649697,0.00010998,2]
[333237204,1721963438006,-500.0,0.00010998,2]
[333237205,1721963438016,-500.0,0.00010998,2]
[333237206,1721963438025,-230.84282681,0.00010998,2]
[333237207,1721963438034,-500.0,0.00010998,2]
[333237208,1721963438044,-500.0,0.00010998,2]
[333237209,1721963438053,-500.0,0.00010998,2]
[333237210,1721963438063,-500.0,0.00010998,2]
[333237211,1721963438072,-500.0,0.00010998,2]
[333237212,1721963438082,-500.0,0.00010998,2]
[333237213,1721963438091,-607.76,0.00010998,2]
[333237214,1721963438100,-507.63103593,0.00010998,2]
[333237215,1721963438109,-500.0,0.00010998,2]
[333237216,1721963438119,-500.0,0.00010998,2]
[333237217,1721963438128,-514.5119856,0.00010998,2]
[333237218,1721963438137,-584.88654791,0.00010998,2]
[333237219,1721963438147,-210.85007943,0.00010998,2]
[333237220,1721963438157,-500.0,0.00010998,2]
[333237221,1721963438166,-500.0,0.00010998,2]
[333237222,1721963438175,-500.0,0.00010998,2]
[333237223,1721963438185,-500.0,0.00010998,2]
[333237224,1721963438194,-500.0,0.00010998,2]
[333237225,1721963438203,-500.0,0.00010998,2]
[333237226,1721963438212,-500.0,0.00010998,2]
[333237227,1721963438223,-233.46815566,0.00010998,2]
[333237228,1721963438234,-500.0,0.00010998,2]
[333237229,1721963438243,-500.0,0.00010998,2]
[333237230,1721963438253,-500.0,0.00010998,2]
[333237231,1721963438262,-500.0,0.00010998,2]
[333237232,1721963438272,-500.0,0.00010998,2]
[333237233,1721963438281,-500.0,0.00010998,2]
[333237234,1721963438290,-500.0,0.00010998,2]
[333237235,1721963438299,-507.55385529,0.00010998,2]
[333237236,1721963438309,-500.0,0.00010998,2]
[333237237,1721963438318,-500.0,0.00010998,2]
[333237238,1721963438329,-500.0,0.00010998,2]
[333237239,1721963438338,-500.0,0.00010998,2]
[333237240,1721963438347,-309.66808909,0.00010998,2]
[333237241,1721963438357,-523.44549824,0.00010998,2]
[333237242,1721963438366,-500.0,0.00010998,2]
[333237243,1721963438376,-500.0,0.00010998,2]
[333237244,1721963438399,-500.0,0.00010998,2]
[333237245,1721963438408,-625.16217973,0.00010998,2]
[333237246,1721963438417,-500.0,0.00010998,2]
[333237247,1721963438427,-500.0,0.00010998,2]
[333237248,1721963438438,-461.22,0.00010998,2]
[333237249,1721963438448,-500.0,0.00010998,2]
[333237250,1721963438457,-500.0,0.00010998,2]
[333237251,1721963438467,-640.1380685,0.00010998,2]
[333237252,1721963438477,-507.69255309,0.00010998,2]
[333237253,1721963438486,-510.4,0.00010998,2]
[333237254,1721963438496,-500.0,0.00010998,2]
[333237255,1721963438505,-500.0,0.00010998,2]
[333237256,1721963438515,-525.90761229,0.00010998,2]
[333237257,1721963438525,-500.0,0.00010998,2]
[333237258,1721963438534,-500.0,0.00010998,2]
[333237259,1721963438543,-500.0,0.00010998,2]
[333237260,1721963438553,-500.0,0.00010998,2]
[333237261,1721963438562,-500.0,0.00010998,2]
[333237262,1721963438571,-500.0,0.00010998,2]
[333237263,1721963438581,-541.73394179,0.00010998,2]
[333237264,1721963438590,-500.0,0.00010998,2]
[333237265,1721963438600,-319.45323506,0.00010998,2]
[333237266,1721963438609,-500.0,0.00010998,2]
[333237267,1721963438619,-614.12,0.00010998,2]
[333237268,1721963438628,-500.0,0.00010998,2]
[333237269,1721963438638,-262.75247719,0.00010998,2]
[333237270,1721963438648,-500.0,0.00010998,2]
[333237271,1721963438657,-500.0,0.00010998,2]
[333237272,1721963438667,-507.75625208,0.00010998,2]
[333237273,1721963438676,-500.0,0.00010998,2]
[333237274,1721963438686,-500.0,0.00010998,2]
[333237275,1721963438696,-505.64546418,0.00010998,2]
[333237276,1721963438705,-459.04853496,0.00010998,2]
[333237277,1721963438715,-329.9468463,0.00010998,2]
[333237278,1721963438724,-275.9458843,0.00010998,2]
[333237279,1721963438741,-224.0541157,0.00010998,2]
[333237280,1721963438751,-566.47046249,0.00010998,2]
[333237281,1721963438760,-500.0,0.00010998,2]
[333237282,1721963438770,-150.0,0.00010998,2]
[333237283,1721963438779,-150.0,0.00010998,2]
[333237284,1721963438788,-228.80193325,0.00010998,2]
[333237285,1721963438798,-500.0,0.00010998,2]
[333237286,1721963438808,-500.0,0.00010998,2]
[333237287,1721963438818,-301.34907033,0.00010998,2]
[333237288,1721963438828,-528.769996,0.00010998,2]
[333237289,1721963438838,-507.41371433,0.00010998,2]
[333237290,1721963438847,-537.32997727,0.00010998,2]
[333237291,1721963438856,-500.0,0.00010998,2]
[333237292,1721963438865,-500.0,0.00010998,2]
[333237293,1721963438875,-500.0,0.00010998,2]
[333237294,1721963438885,-253.0058462,0.00010998,2]
[333237295,1721963438896,-531.42288344,0.00010998,2]
[333237296,1721963438906,-533.22850267,0.00010998,2]
[333237297,1721963438915,-475.34111312,0.00010998,2]
[333237298,1721963438925,-508.10936842,0.00010998,2]
[333237299,1721963438934,-509.8564338,0.00010998,2]
[333237300,1721963438943,-506.35434108,0.00010998,2]
[333237301,1721963438953,-254.98624188,0.00010998,2]
[333237302,1721963439894,-14698.48398901,0.00010899,2]
[333237303,1721963439903,-1000.0,0.000109,2]
[333237304,1721963439913,-245.01375812,0.00010998,2]
[333237305,1721963439922,-472.58,0.00010998,2]
[333237306,1721963439931,-505.1745089,0.00010998,2]
[333237307,1721963439940,-508.73684312,0.00010998,2]
[333237308,1721963439950,-555.29787421,0.00010998,2]
[333237309,1721963439959,-506.0593342,0.00010998,2]
[333237310,1721963439970,-513.82177758,0.00010998,2]
[333237311,1721963439980,-500.0,0.00010998,2]
[333237312,1721963439989,-500.0,0.00010998,2]
[333237313,1721963439998,-406.16938482,0.00010998,2]
[333237314,1721963440007,-499.64876009,0.00010998,2]
[333237315,1721963440018,-500.0,0.00010998,2]
[333237316,1721963440027,-507.96385669,0.00010998,2]
[333237317,1721963440037,-508.22189599,0.00010998,2]
[333237318,1721963440048,-508.45743956,0.00010998,2]
[333237319,1721963440058,-500.0,0.00010998,2]
[333237320,1721963440067,-443.53443281,0.00010998,2]
[333237321,1721963440076,-500.0,0.00010998,2]
[333237323,1721963440085,-500.0,0.00010998,2]
[333237326,1721963440094,-596.17302755,0.00010998,2]
[333237329,1721963440103,-500.0,0.00010998,2]
[333237332,1721963440112,-500.0,0.00010998,2]
[333237336,1721963440121,-195.52643403,0.00010998,2]
[333237339,1721963440130,-500.0,0.00010998,2]
[333237341,1721963440140,-602.14625462,0.00010998,2]
[333237344,1721963440149,-506.71095584,0.00010998,2]
[333237348,1721963440160,-500.0,0.00010998,2]
[333237350,1721963440169,-241.47715607,0.00010998,2]
[333237353,1721963440178,-500.0,0.00010998,2]
[333237356,1721963440187,-500.0,0.00010998,2]
[333237359,1721963440196,-500.0,0.00010998,2]
[333237361,1721963440205,-324.13610467,0.00010998,2]
[333237363,1721963440215,-500.0,0.00010998,2]
[333237365,1721963440223,-312.8638196,0.00010998,2]
[333237368,1721963440232,-500.0,0.00010998,2]
[333237371,1721963440242,-164.46556151,0.00010998,2]
[333237373,1721963440251,-506.7034269,0.00010998,2]
[333237376,1721963440262,-500.0,0.00010998,2]
[333237379,1721963440272,-500.0,0.00010998,2]
[333237382,1721963440281,-500.0,0.00010998,2]
[333237384,1721963440291,-500.0,0.00010998,2]
[333237386,1721963440300,-500.0,0.00010998,2]
[333237388,1721963440309,-505.6689102,0.00010998,2]
[333237390,1721963440318,-504.79735592,0.00010998,2]
[333237392,1721963440328,-500.0,0.00010998,2]
[333237394,1721963440337,-500.0,0.00010998,2]
[333237396,1721963440346,-537.20992759,0.00010998,2]
[333237398,1721963440356,-500.0,0.00010998,2]
[333237400,1721963440365,-504.70927594,0.00010998,2]
[333237402,1721963440375,-500.0,0.00010998,2]
[333237403,1721963440384,-509.08194987,0.00010998,2]
[333237405,1721963440393,-500.0,0.00010998,2]
[333237407,1721963440402,-508.49086433,0.00010998,2]
[333237409,1721963440411,-507.98319416,0.00010998,2]
[333237411,1721963440421,-500.0,0.00010998,2]
[333237413,1721963440430,-500.0,0.00010998,2]
[333237414,1721963440439,-500.0,0.00010998,2]
[333237416,1721963440448,-500.0,0.00010998,2]
[333237418,1721963440457,-506.24276975,0.00010998,2]
[333237420,1721963440467,-487.24129255,0.00010998,2]
[333237422,1721963440476,-500.0,0.00010998,2]
[333237424,1721963440486,-602.07336449,0.00010998,2]
[333237425,1721963440494,-500.0,0.00010998,2]
[333237427,1721963440503,-500.0,0.00010998,2]
[333237429,1721963440512,-272.36,0.00010998,2]
[333237431,1721963440522,-509.40198424,0.00010998,2]
[333237433,1721963440531,-506.75123733,0.00010998,2]
[333237435,1721963440543,-506.0819932,0.00010998,2]
[333237437,1721963440556,-510.01921065,0.00010998,2]
[333237439,1721963440566,-503.71207374,0.00010998,2]
[333237441,1721963440575,-505.08841209,0.00010998,2]
[333237443,1721963440584,-500.0,0.00010998,2]
[333237445,1721963440593,-196.41448845,0.00010998,2]
[333237447,1721963440602,-507.3586989,0.00010998,2]
[333237448,1721963440612,-500.0,0.00010998,2]
[333237450,1721963440621,-232.87678541,0.00010998,2]
[333237452,1721963440631,-500.0,0.00010998,2]
[333237454,1721963440640,-195.3021634,0.00010998,2]
[333237456,1721963440650,-504.97470485,0.00010998,2]
[333237458,1721963440659,-500.0,0.00010998,2]
[333237460,1721963440669,-184.98433971,0.00010998,2]
[333237461,1721963440679,-500.0,0.00010998,2]
[333237463,1721963440688,-260.93982047,0.00010998,2]
[333237465,1721963440698,-506.63501585,0.00010998,2]
[333237467,1721963440707,-508.23071237,0.00010998,2]
[333237469,1721963440717,-438.80322232,0.00010998,2]
[333237471,1721963440727,-500.0,0.00010998,2]
[333237473,1721963440737,-526.21176202,0.00010998,2]
[333237475,1721963440747,-330.03746052,0.00010998,2]
[333237478,1721963440757,-500.0,0.00010998,2]
[333237481,1721963440767,-500.0,0.00010998,2]
[333237484,1721963440776,-500.0,0.00010998,2]
[333237486,1721963440786,-532.7311878,0.00010998,2]
[333237488,1721963440796,-613.35497791,0.00010998,2]
[333237489,1721963440805,-506.93860315,0.00010998,2]
[333237491,1721963440815,-223.0866179,0.00010998,2]
[333237493,1721963440826,-503.80886572,0.00010998,2]
[333237495,1721963440835,-500.0,0.00010998,2]
[333237497,1721963440845,-193.17421578,0.00010998,2]
[333237499,1721963440855,-487.44510462,0.00010998,2]
[333237501,1721963440864,-500.0,0.00010998,2]
[333237503,1721963440874,-400.54187288,0.00010998,2]
[333237504,1721963440883,-506.22157918,0.00010998,2]
[333237506,1721963440893,-507.10822004,0.00010998,2]
[333237508,1721963440903,-500.0,0.00010998,2]
[333237510,1721963440912,-500.0,0.00010998,2]
[333237512,1721963440922,-500.0,0.00010998,2]
[333237514,1721963440931,-500.0,0.00010998,2]
[333237516,1721963440940,-500.0,0.00010998,2]
[333237518,1721963440949,-523.40180639,0.00010998,2]
[333237520,1721963440959,-597.04707725,0.00010998,2]
[333237522,1721963440970,-500.0,0.00010998,2]
[333237523,1721963440980,-370.18983138,0.00010998,2]
[333237525,1721963440989,-500.0,0.00010998,2]
[333237527,1721963440998,-506.11055917,0.00010998,2]
[333237529,1721963441008,-500.0,0.00010998,2]
[333237531,1721963441018,-500.0,0.00010998,2]
[333237533,1721963441027,-500.0,0.00010998,2]
[333237534,1721963441036,-210.67905896,0.00010998,2]
[333237536,1721963441047,-500.0,0.00010998,2]
[333237538,1721963441057,-517.11489949,0.00010998,2]
[333237540,1721963441066,-500.0,0.00010998,2]
[333237542,1721963441076,-230.34246826,0.00010998,2]
[333237544,1721963441085,-500.0,0.00010998,2]
[333237546,1721963441095,-648.71719876,0.00010998,2]
[333237547,1721963441105,-525.36697672,0.00010998,2]
[333237549,1721963441114,-500.0,0.00010998,2]
[333237551,1721963441123,-444.17816131,0.00010998,2]
[333237553,1721963441133,-169.50593551,0.00010998,2]
[333237555,1721963441142,-508.47316521,0.00010998,2]
[333237557,1721963441151,-500.0,0.00010998,2]
[333237559,1721963441161,-314.81454735,0.00010998,2]